[Event "98th Caplin Hastings Masters 2024-25"]
[Site "Hastings"]
[Date "2025.01.01"]
[Round "7.27"]
[White "Cheng, Louis"]
[Black "Alcindor, Samuel"]
[Result "1-0"]
[ECO "B23"]
[WhiteElo "2087"]
[BlackElo "1927"]
[Annotator "NA RC"]
[PlyCount "65"]
[EventDate "2024.12.23"]
[EventType "swiss"]
[EventCountry "ENG"]
[SourceTitle "playchess.com"]
[Source "ChessBase"]
[SourceQuality "1"]
[TimeControl "5400+30"]

1. e4 {[%emt 0:00:01]} c5 {[%emt 0:00:12]} 2. Nc3 {[%emt 0:00:05]} g6 {[%emt 0:00:55]} 3. d4 {[%emt 0:00:03]} cxd4 {[%emt 0:00:13]} 4. Qxd4 {[%emt 0:00:04]} Nf6 {[%emt 0:00:11]} 5. Be3 {[%emt 0:00:04]} Nc6 {[%emt 0:04:00]} 6. Qd2 {[%emt 0:00:04]} Qa5 {[%emt 0:00:56]} 7. f3 {[%emt 0:03:48]} a6 {[%emt 0:02:31]} 8. Bc4 {[%emt 0:05:05]} b5 {[%emt 0:04:48]} 9. Bb3 {[%emt 0:00:05]} d6 {[%emt 0:00:38]} 10. Nge2 {[%emt 0:05:28]} Bd7 {[%emt 0:03:35]} 11. O-O-O {[%emt 0:05:24]} Ne5 {[%emt 0:05:12]} 12. Kb1 {[%emt 0:01:22]} b4 {[%emt 0:09:59]} 13. Nd5 {[%emt 0:00:12]} Nxd5 {[%emt 0:00:19]} 14. Bxd5 {[%emt 0:01:46]} Rc8 {[%emt 0:06:30]} 15. Bd4 {[%emt 0:02:13]} Qc7 {[%emt 0:09:23]} 16. f4 {[%emt 0:01:25]} Bh6 {[%emt 0:01:27]} 17. h4 {[%emt 0:11:31]} Bg4 {[%emt 0:08:09]} 18. Bb3 {[%emt 0:00:53]} O-O {[%emt 0:02:15]} 19. h5 {[%emt 0:04:00]} gxh5 {[%emt 0:04:26]} 20. Qe1 {[%emt 0:00:17]} Nc4 {[%emt 0:03:18]} 21. Qg3 {[%emt 0:00:48]} e5 {[%emt 0:00:54]} 22. Rxh5 {[%emt 0:01:32]} Bg7 {[%emt 0:01:07]} 23. Qxg4 {[%emt 0:00:28]} exd4 {[%emt 0:00:27]} 24. Rg5 {[%emt 0:00:56]} f6 {[%emt 0:06:54]} 25. Bxc4+ {[%emt 0:00:03]} Kh8 {[%emt 0:02:10]} 26. Rh5 {[%emt 0:01:19]} Qxc4 {[%emt 0:00:20]} 27. Nxd4 {[%emt 0:00:23]} Rc7 {[%emt 0:07:59]} 28. Qg6 {[%emt 0:01:16]} Kg8 {[%emt 0:02:35]} 29. Rxh7 {[%emt 0:00:38]} Rff7 {[%emt 0:00:43]} 30. Rxg7+ {[%emt 0:00:20]} Kf8 {[%emt 0:01:02]} 31. Rg8+ {[%emt 0:00:06]} Ke7 {[%emt 0:00:06]} 32. Nf5+ {[%emt 0:00:04]} Kd7 {[%emt 0:00:56]} 33. Rxd6# {[%emt 0:00:06]} 1-0

[Event "98th Caplin Hastings Masters 2024-25"]
[Site "Hastings"]
[Date "2025.01.01"]
[Round "7.28"]
[White "Zhang, Junyi"]
[Black "Kim, Yegeon"]
[Result "1-0"]
[ECO "B55"]
[WhiteElo "2070"]
[BlackElo "1697"]
[Annotator "NA RC"]
[PlyCount "59"]
[EventDate "2024.12.23"]
[EventType "swiss"]
[EventCountry "ENG"]
[SourceTitle "playchess.com"]
[Source "ChessBase"]
[SourceQuality "1"]
[TimeControl "5400+30"]

1. e4 {[%emt 0:00:00]} c5 {[%emt 0:00:06]} 2. Nf3 {[%emt 0:00:06]} d6 {[%emt 0:00:03]} 3. d4 {[%emt 0:00:06]} cxd4 {[%emt 0:00:03]} 4. Nxd4 {[%emt 0:00:07]} Nf6 {[%emt 0:00:05]} 5. f3 {[%emt 0:00:01]} e5 {[%emt 0:00:07]} 6. Nb3 {[%emt 0:00:04]} d5 {[%emt 0:00:02]} 7. Bg5 {[%emt 0:00:06]} d4 {[%emt 0:00:03]} 8. c3 {[%emt 0:00:45]} Nc6 {[%emt 0:00:23]} 9. cxd4 {[%emt 0:01:44]} Bb4+ {[%emt 0:00:25]} 10. Bd2 {[%emt 0:00:02]} O-O {[%emt 0:00:21]} 11. Bxb4 {[%emt 0:40:48]} Nxb4 {[%emt 0:00:32]} 12. Qd2 {[%emt 0:03:55]} Nxe4 {[%emt 0:00:45]} 13. fxe4 {[%emt 0:03:52]} Qh4+ {[%emt 0:00:30]} 14. Kd1 {[%emt 0:03:12]} Bg4+ {[%emt 0:01:07]} 15. Be2 {[%emt 0:03:09]} exd4 {[%emt 0:19:25]} 16. Na3 {[%emt 0:17:11]} d3 {[%emt 0:58:54]} 17. Bf3 {[%emt 0:01:20]} Nc6 {[%emt 0:02:09]} 18. Qe3 {[%emt 0:07:06]} f5 {[%emt 0:02:53]} 19. Nd2 {[%emt 0:02:47]} Ne5 {[%emt 0:03:30]} 20. Nac4 {[%emt 0:05:20]} Nxc4 {[%emt 0:05:45]} 21. Nxc4 {[%emt 0:00:02]} Rae8 {[%emt 0:02:26]} 22. Nd2 {[%emt 0:02:07]} fxe4 {[%emt 0:01:01]} 23. Nxe4 {[%emt 0:00:10]} Bf5 {[%emt 0:00:41]} 24. Re1 {[%emt 0:00:33]} Re6 {[%emt 0:00:38]} 25. g3 {[%emt 0:03:06]} Qe7 {[%emt 0:00:13]} 26. Qc5 {[%emt 0:03:17]} Re8 {[%emt 0:00:46]} 27. Qxf5 {[%emt 0:01:27]} Qb4 {[%emt 0:00:33]} 28. Nf6+ {[%emt 0:01:07]} gxf6 {[%emt 0:00:19]} 29. Rxe6 {[%emt 0:00:11]} Qa4+ {[%emt 0:00:39]} 30. b3 {[%emt 0:00:06]} 1-0

[Event "98th Caplin Hastings Masters 2024-25"]
[Site "Hastings"]
[Date "2025.01.01"]
[Round "7.29"]
[White "Bharat Kumar, Balahari"]
[Black "Sasikumar, Srivathsan"]
[Result "0-1"]
[ECO "A50"]
[WhiteElo "2063"]
[BlackElo "1904"]
[Annotator "NA RC"]
[PlyCount "86"]
[EventDate "2024.12.23"]
[EventType "swiss"]
[EventCountry "ENG"]
[SourceTitle "playchess.com"]
[Source "ChessBase"]
[SourceQuality "1"]
[TimeControl "5400+30"]

1. d4 {[%emt 0:00:16]} Nf6 {[%emt 0:00:40]} 2. c4 {[%emt 0:00:41]} e6 {[%emt 0:00:31]} 3. Qc2 {[%emt 0:01:20]} c5 {[%emt 0:08:35]} 4. dxc5 {[%emt 0:19:57]} Bxc5 {[%emt 0:00:40]} 5. Nf3 {[%emt 0:00:35]} Nc6 {[%emt 0:04:26]} 6. e3 {[%emt 0:00:20]} b6 {[%emt 0:03:13]} 7. a3 {[%emt 0:00:37]} a5 {[%emt 0:01:53]} 8. Nc3 {[%emt 0:02:35]} O-O {[%emt 0:06:47]} 9. Be2 {[%emt 0:04:07]} Bb7 {[%emt 0:05:52]} 10. O-O {[%emt 0:00:53]} Rc8 {[%emt 0:06:02]} 11. b3 {[%emt 0:03:04]} Bd6 {[%emt 0:11:20]} 12. Bb2 {[%emt 0:08:50]} h6 {[%emt 0:08:46]} 13. Rad1 {[%emt 0:09:07]} Bb8 {[%emt 0:03:22]} 14. Nb5 {[%emt 0:01:11]} d5 {[%emt 0:12:56]} 15. Qb1 {[%emt 0:01:42]} Qe7 {[%emt 0:02:45]} 16. Qa1 {[%emt 0:09:04]} dxc4 {[%emt 0:03:11]} 17. Bxc4 {[%emt 0:01:02]} Rfd8 {[%emt 0:01:41]} 18. h3 {[%emt 0:06:34]} Rxd1 {[%emt 0:02:47]} 19. Rxd1 {[%emt 0:01:14]} Rd8 {[%emt 0:00:03]} 20. Rc1 {[%emt 0:11:52]} Na7 {[%emt 0:03:43]} 21. Nxa7 {[%emt 0:01:54]} Bxf3 {[%emt 0:01:39]} 22. gxf3 {[%emt 0:02:50]} Bxa7 {[%emt 0:00:10]} 23. f4 {[%emt 0:00:26]} Bb8 {[%emt 0:01:31]} 24. Bd4 {[%emt 0:03:21]} Ne4 {[%emt 0:08:30]} 25. Qb2 {[%emt 0:04:46]} e5 {[%emt 0:01:26]} 26. fxe5 {[%emt 0:03:12]} Ng5 {[%emt 0:00:23]} 27. Bf1 {[%emt 0:01:53]} Nf3+ {[%emt 0:00:17]} 28. Kh1 {[%emt 0:00:26]} Bxe5 {[%emt 0:00:43]} 29. Bxe5 {[%emt 0:00:22]} Nxe5 {[%emt 0:00:05]} 30. Qc3 {[%emt 0:00:45]} Qe6 {[%emt 0:01:00]} 31. f4 {[%emt 0:00:28]} Nf3 {[%emt 0:00:31]} 32. Qc4 {[%emt 0:00:33]} Qxe3 {[%emt 0:00:25]} 33. Bg2 {[%emt 0:00:28]} Nh4 {[%emt 0:00:27]} 34. Qc7 {[%emt 0:00:30]} Re8 {[%emt 0:00:35]} 35. Qc6 {[%emt 0:00:32]} Re6 {[%emt 0:00:24]} 36. Qc8+ {[%emt 0:00:26]} Kh7 {[%emt 0:00:05]} 37. Qc2+ {[%emt 0:00:12]} Rg6 {[%emt 0:00:20]} 38. Be4 {[%emt 0:00:51]} f5 {[%emt 0:00:32]} 39. Bxf5 {[%emt 0:00:31]} Nxf5 {[%emt 0:00:16]} 40. Rd1 {[%emt 0:00:31]} Qf3+ {[%emt 0:00:28]} 41. Kh2 {[%emt 0:00:06]} Ne3 {[%emt 0:00:32]} 42. Qd2 {[%emt 0:00:44]} Rg2+ {[%emt 0:00:13]} 43. Kh1 {[%emt 0:00:08]} Qxh3# {[%emt 0:00:08]} 0-1

[Event "98th Caplin Hastings Masters 2024-25"]
[Site "Hastings"]
[Date "2025.01.01"]
[Round "7.30"]
[White "Ahn, Sungmin"]
[Black "Burrows, Martin P"]
[Result "1-0"]
[ECO "B23"]
[WhiteElo "1926"]
[BlackElo "2042"]
[Annotator "NA RC"]
[PlyCount "89"]
[EventDate "2024.12.23"]
[EventType "swiss"]
[EventCountry "ENG"]
[SourceTitle "playchess.com"]
[Source "ChessBase"]
[SourceQuality "1"]
[TimeControl "5400+30"]

1. e4 {[%emt 0:00:03]} c5 {[%emt 0:00:05]} 2. Nc3 {[%emt 0:00:04]} Nc6 {[%emt 0:00:06]} 3. Bb5 {[%emt 0:00:03]} Nd4 {[%emt 0:00:09]} 4. Nf3 {[%emt 0:00:03]} Nxb5 {[%emt 0:00:13]} 5. Nxb5 {[%emt 0:00:05]} d6 {[%emt 0:00:19]} 6. d4 {[%emt 0:00:04]} Nf6 {[%emt 0:00:23]} 7. Nc3 {[%emt 0:00:06]} cxd4 {[%emt 0:00:35]} 8. Qxd4 {[%emt 0:00:04]} e5 {[%emt 0:00:45]} 9. Qd3 {[%emt 0:00:06]} h6 {[%emt 0:01:07]} 10. Nd2 {[%emt 0:01:09]} Be6 {[%emt 0:02:55]} 11. Nc4 {[%emt 0:00:08]} Rc8 {[%emt 0:00:47]} 12. Ne3 {[%emt 0:00:05]} Be7 {[%emt 0:02:19]} 13. O-O {[%emt 0:03:24]} O-O {[%emt 0:01:48]} 14. Bd2 {[%emt 0:02:02]} a6 {[%emt 0:00:49]} 15. a4 {[%emt 0:00:02]} Qc7 {[%emt 0:02:28]} 16. Rfc1 {[%emt 0:00:22]} Bc4 {[%emt 0:09:06]} 17. Nxc4 {[%emt 0:02:12]} Qxc4 {[%emt 0:00:07]} 18. Qf3 {[%emt 0:03:40]} Rfd8 {[%emt 0:04:46]} 19. b3 {[%emt 0:37:56]} Qe6 {[%emt 0:02:36]} 20. Nd5 {[%emt 0:04:05]} Nxd5 {[%emt 0:00:53]} 21. exd5 {[%emt 0:00:02]} Qg6 {[%emt 0:00:20]} 22. c4 {[%emt 0:00:56]} f5 {[%emt 0:01:19]} 23. b4 {[%emt 0:01:48]} Rf8 {[%emt 0:10:33]} 24. Qb3 {[%emt 0:03:37]} f4 {[%emt 0:00:42]} 25. f3 {[%emt 0:02:21]} Rf5 {[%emt 0:17:28]} 26. Ra2 {[%emt 0:03:48]} Rg5 {[%emt 0:00:53]} 27. Be1 {[%emt 0:00:27]} e4 {[%emt 0:02:54]} 28. Re2 {[%emt 0:12:00]} e3 {[%emt 0:04:29]} 29. Qc2 {[%emt 0:13:53]} Qf7 {[%emt 0:01:47]} 30. Qb1 {[%emt 0:03:15]} Rf5 {[%emt 0:05:57]} 31. Rec2 {[%emt 0:00:39]} g5 {[%emt 0:00:31]} 32. Qb3 {[%emt 0:01:52]} Kh7 {[%emt 0:01:52]} 33. Qd3 {[%emt 0:00:40]} Rg8 {[%emt 0:02:08]} 34. g4 {[%emt 0:02:13]} fxg3 {[%emt 0:00:07]} 35. hxg3 {[%emt 0:00:11]} Rg6 {[%emt 0:01:09]} 36. Qxe3 {[%emt 0:01:11]} Rxf3 {[%emt 0:01:05]} 37. Qe4 {[%emt 0:00:26]} b6 {[%emt 0:06:13]} 38. Kg2 {[%emt 0:01:58]} g4 {[%emt 0:01:21]} 39. Rf2 {[%emt 0:00:19]} Rxf2+ {[%emt 0:03:51]} 40. Bxf2 {[%emt 0:00:01]} Bd8 {[%emt 0:00:12]} 41. Rf1 {[%emt 0:00:25]} Qd7 {[%emt 0:00:48]} 42. Bd4 {[%emt 0:00:33]} h5 {[%emt 0:08:33]} 43. Rf8 {[%emt 0:00:25]} Kh6 {[%emt 0:00:12]} 44. Rh8+ {[%emt 0:01:32]} Kg5 {[%emt 0:00:13]} 45. Qf4# {[%emt 0:00:28]} 1-0

[Event "98th Caplin Hastings Masters 2024-25"]
[Site "Hastings"]
[Date "2025.01.01"]
[Round "7.31"]
[White "Pick, Freddie"]
[Black "Chandler, Cliff R"]
[Result "0-1"]
[ECO "A28"]
[WhiteElo "1874"]
[BlackElo "2161"]
[Annotator "TA"]
[PlyCount "66"]
[EventDate "2024.12.23"]
[EventType "swiss"]
[EventCountry "ENG"]
[SourceTitle "playchess.com"]
[Source "ChessBase"]
[SourceQuality "1"]
[TimeControl "5400+30"]

{[%evp 9,66,6,8,14,18,0,0,0,0,-7,-9,-13,-7,-6,-9,-14,-5,-10,-13,-11,0,0,-1,-267,-267,-263,-266,-316,-310,-341,-358,-356,-357,-348,-345,-376,-370,-376,-368,-372,-346,-405,-404,-405,-386,-431,-422,-424,-429,-419,-415,-411,0,-417,-407,-482,-487,-487,-465]} 1. c4 {[%emt 0:00:07]} e5 {[%emt 0:00:19]} 2. Nc3 {[%emt 0:00:05]} Nc6 {[%emt 0:00:12]} 3. Nf3 {[%emt 0:00:05]} Nf6 {[%emt 0:00:44]} 4. e3 {[%emt 0:00:04]} Be7 {[%emt 0:00:55]} 5. d4 {[%emt 0:00:25]} exd4 {[%emt 0:00:44]} 6. exd4 {[%emt 0:00:27]} d5 {[%emt 0:00:35]} 7. Bd3 {[%emt 0:04:27]} dxc4 {[%emt 0:09:08]} 8. Bxc4 {[%emt 0:00:13]} Bg4 {[%emt 0:00:37]} 9. d5 {[%emt 0:05:47]} Bxf3 {[%emt 0:19:09]} 10. Qxf3 {[%emt 0:02:10]} Ne5 {[%emt 0:05:53][%csl LRc4,LRf3] A dynamic duo of knights.} 11. Qe2 {[%emt 0:02:07]} Nxc4 {[%emt 0:00:37]} 12. Qxc4 {[%emt 0:00:06]} O-O {[%emt 0:01:20]} 13. O-O {[%emt 0:02:01]} a6 {[%emt 0:09:36]} 14. Bf4 {[%emt 0:03:42]} b5 {[%emt 0:04:18]} 15. Qxc7 {[%emt 0:08:48] Strongly threatening d6.} b4 {[%emt 0:00:36]} 16. d6 $2 {[%emt 0:01:14][%mdl 8192]} (16. Qxd8 $11 Rfxd8 17. Na4 Nxd5 (17... Rxd5 $2 {is the wrong capture.} 18. Nb6 $18) 18. Bd2) 16... Qxc7 $19 {[%emt 0:00:10]} 17. dxc7 {[%emt 0:00:05]} bxc3 {[%emt 0:00:07]} 18. bxc3 {[%emt 0:00:02]} Nd5 {[%emt 0:01:18][%csl LRc3,LRf4]} 19. Rfe1 {[%emt 0:01:56]} Bf6 {[%emt 0:00:41]} 20. Be5 {[%emt 0:02:29]} Bxe5 {[%emt 0:00:16]} (20... Nxc3 21. Bxf6 gxf6 22. Rac1 Nxa2 23. Rc4 $15) 21. Rxe5 {[%emt 0:00:06]} Nxc7 {[%emt 0:00:05]} 22. c4 {[%emt 0:00:47]} Ne6 {[%emt 0:00:19]} 23. Rc1 {[%emt 0:00:30]} Rfc8 {[%emt 0:00:13]} 24. Kf1 {[%emt 0:01:00]} Rc5 {[%emt 0:01:11]} 25. Re4 {[%emt 0:00:25]} Rac8 {[%emt 0:01:16]} 26. Ke2 {[%emt 0:00:42]} Kf8 {[%emt 0:00:09]} 27. g3 {[%emt 0:00:27]} Ke7 {[%emt 0:02:09]} 28. Kd3 {[%emt 0:00:38]} f5 {[%emt 0:01:13]} 29. Re2 {[%emt 0:01:00]} Rd8+ {[%emt 0:00:29]} 30. Kc3 {[%emt 0:00:35]} Rdc8 {[%emt 0:02:56]} 31. Kd3 $1 {[%emt 0:01:45]} Kf6 {[%emt 0:00:11]} 32. h4 {[%emt 0:01:23]} Ra5 {[%emt 0:04:05] And now ...Ra3+ would win.} 33. Rb2 {[%emt 0:05:01]} Ra3+ {[%emt 0:02:27]} 0-1

[Event "98th Caplin Hastings Masters 2024-25"]
[Site "Hastings"]
[Date "2025.01.01"]
[Round "7.32"]
[White "Zhang, Kendrick Botong"]
[Black "Schimnatkowski, Lukas"]
[Result "0-1"]
[ECO "B75"]
[WhiteElo "1979"]
[BlackElo "2221"]
[Annotator "TA"]
[PlyCount "104"]
[EventDate "2024.12.23"]
[EventType "swiss"]
[EventCountry "ENG"]
[SourceTitle "playchess.com"]
[Source "ChessBase"]
[SourceQuality "1"]
[TimeControl "5400+30"]

{[%evp 14,103,61,58,54,22,12,9,27,0,0,-12,0,-114,-101,-97,-97,-106,0,0,0,0,29,-48,-67,-72,-64,-102,-96,-136,-129,-131,-124,-241,-91,-104,-50,-159,-142,-187,-187,-163,-183,-348,-366,-362,-333,-670,-632,-913,-906,-939,-838,-762,-406,-2276,-2085,-2218,-2222,-1873,-1747,-1685,-1589,-29973,-29971,-29992,-29993,-29993,-29994,-29994,-29989,-29987,-29978,-29976,-525,-527,-527,-534,-504,-29972,-29972,-29972,-29972,-29970,-29973,-29971,-29972,-29976,-29976,-29980,-29978,-29999]} 1. e4 {[%emt 0:00:07]} c5 {[%emt 0:00:10]} 2. Nf3 {[%emt 0:00:05]} d6 {[%emt 0:00:04]} 3. d4 {[%emt 0:00:06]} cxd4 {[%emt 0:00:05]} 4. Nxd4 {[%emt 0:00:04]} Nf6 {[%emt 0:00:09]} 5. Nc3 {[%emt 0:00:03]} g6 {[%emt 0:00:06]} 6. Be3 {[%emt 0:00:13]} Bg7 {[%emt 0:00:07]} 7. f3 {[%emt 0:00:06]} a6 {[%emt 0:00:09]} 8. Qd2 {[%emt 0:00:09]} h5 {[%emt 0:00:06]} 9. O-O-O {[%emt 0:17:39]} b5 {[%emt 0:00:43]} 10. Kb1 {[%emt 0:01:14]} Bb7 {[%emt 0:00:50] Against Nd5} 11. h4 {[%emt 0:15:04]} Nbd7 {[%emt 0:01:12]} 12. Nb3 {[%emt 0:10:27]} Rc8 {[%emt 0:08:36]} 13. Qf2 {[%emt 0:11:44] [#]} (13. a4 $11 {remains equal.}) 13... Rxc3 $1 $17 {[%emt 0:14:45]} 14. bxc3 {[%emt 0:03:55]} Qc7 {[%emt 0:01:02][%cal Ob7e4]} 15. Bd3 {[%emt 0:04:34]} Qxc3 {[%emt 0:04:35]} ({Better is} 15... O-O $1 $17) 16. Bd4 $11 {[%emt 0:02:15]} Qc7 {[%emt 0:01:10]} 17. Qd2 {[%emt 0:03:00]} O-O {[%emt 0:07:08]} 18. Qc3 {[%emt 0:03:40]} (18. Qa5 $11 Qc8 19. Bb2) 18... Qb8 $1 $15 {[%emt 0:01:08][%mdl 1024] Black has compensation.} 19. Rhe1 {[%emt 0:02:21]} e5 {[%emt 0:05:36]} 20. Bf2 {[%emt 0:02:54]} d5 {[%emt 0:02:28]} 21. Bg3 {[%emt 0:01:53]} Rc8 {[%emt 0:18:37]} 22. Qa5 {[%emt 0:03:13]} Qa8 {[%emt 0:02:45][%cal Rd5e4]} 23. Re2 {[%emt 0:10:13]} (23. Nd2 $17) 23... Kh7 {[%emt 0:07:33]} (23... dxe4 $19 24. fxe4 Bxe4 25. Bxe4 Nxe4) 24. Be1 $17 {[%emt 0:01:01]} Nf8 {[%emt 0:05:40]} (24... dxe4 $17 25. fxe4 Nb8) 25. exd5 {[%emt 0:02:48]} ({White should try} 25. a4 $15) 25... Nxd5 {[%emt 0:00:17]} 26. Be4 {[%emt 0:00:29]} Ne6 {[%emt 0:00:57]} 27. Bxd5 {[%emt 0:00:51]} Bxd5 {[%emt 0:00:16]} 28. Bc3 $2 {[%emt 0:02:01] [#]} (28. Qb6) 28... Bxf3 $1 $19 {[%emt 0:04:38][%mdl 512]} 29. gxf3 {[%emt 0:00:51]} Qxf3 {[%emt 0:00:05]} 30. Qxa6 $2 {[%emt 0:01:52]} (30. Ree1 Rxc3 (30... Qxc3 $2 31. Qxc3 Rxc3 32. Rd7 $19) 31. Rf1) 30... Qxe2 {[%emt 0:03:38]} 31. Re1 {[%emt 0:00:36]} Qc4 {[%emt 0:00:40]} (31... Rxc3 $2 32. Rxe2 Rf3 33. Re1 $18 (33. Qxb5 Rf1+ 34. Kb2 e4+ 35. c3 Rf4 $18)) 32. Re3 {[%emt 0:00:30]} Nf4 {[%emt 0:03:25] and ...Nd5 would now be decisive} 33. Nd2 {[%emt 0:00:30]} Qc5 {[%emt 0:00:28]} 34. Rg3 {[%emt 0:00:21]} (34. Ne4 $142 Qc4 (34... Qxe3 35. Ng5+ Kh6 36. Nxf7+ Kh7 37. Ng5+ Kh6 38. Qxc8 $11) 35. Nd6) 34... Ne2 {[%emt 0:00:30][%csl LRc3,LRg3]} 35. Ne4 {[%emt 0:00:14]} Nxc3+ {[%emt 0:06:20]} 36. Rxc3 {[%emt 0:00:25]} Qg1+ {[%emt 0:00:38]} 37. Kb2 {[%emt 0:00:06]} Rxc3 {[%emt 0:00:10]} 38. Ng5+ {[%emt 0:00:59]} Kg8 {[%emt 0:00:37]} 39. Kxc3 {[%emt 0:00:29] KQB-KQN. Black is two pawns up.} Qd4+ {[%emt 0:01:00]} 40. Kb3 {[%emt 0:00:06]} Qc4+ {[%emt 0:00:17]} 41. Kb2 {[%emt 0:00:11]} e4+ {[%emt 0:00:09]} 42. Kc1 {[%emt 0:00:11]} Qf1+ {[%emt 0:00:36]} 43. Kd2 {[%emt 0:00:05]} Qf4+ {[%emt 0:00:46]} (43... Qf2+ $142 44. Kd1 Qd4+ (44... Qxh4 $2 45. Qa8+ Bf8 46. Nxe4 $19) 45. Ke1 Qe3+ 46. Kf1 Bd4 (46... Qc1+ $2 47. Ke2 $19) 47. Qa8+ Kg7 48. Nxe4 Qf3+ 49. Ke1 Bc3+ 50. Nxc3 Qxa8 51. Kd1 Qf3+ 52. Ne2 Qd5+ 53. Kc1 Qxa2 54. Kd2 Qd5+ 55. Ke3 Qe6+ (55... Qh1 $2 56. Nd4 $19) 56. Kd3 Qh3+ 57. Kd2 Qxh4 58. Ke3 Qg5+ 59. Kf3 Qg4+ 60. Ke3 h4 61. Nd4 Qg1+ 62. Kd3 h3 63. Nf3 Qf2 64. Ke4 f5+ (64... Qxc2+ $2 65. Ke3 $19) (64... h2 65. Nxh2 Qxh2 66. Kd3 g5 67. c3 Qf4 68. c4 Qxc4+ 69. Ke3 b4 70. Kf2 b3 71. Kg3 b2 72. Kg2 b1=Q 73. Kh3 Qh4+ 74. Kg2 Qbh1#) 65. Kd5 Qxf3+ 66. Ke5 h2 67. Kd4 h1=Q (67... h1=R {is a self mate.} 68. Kc5 Qc3+ 69. Kb6 Re1 70. Ka6 Qc6+ 71. Ka7 Re7+ 72. Kb8 Qe8#) 68. Kc5 Qc3+ 69. Kb6 Qa8 70. Kxb5 Qac6#) 44. Ke2 {[%emt 0:00:14]} Qg4+ {[%emt 0:00:38]} 45. Ke3 {[%emt 0:00:28]} Qxh4 {[%emt 0:00:53]} 46. Qxb5 {[%emt 0:00:55]} (46. Qa8+ $19 Bf8 47. Nxe4) 46... Qe1+ {[%emt 0:00:35]} 47. Kf4 {[%emt 0:00:26]} Qf2+ {[%emt 0:00:52]} 48. Kxe4 {[%emt 0:00:07]} f5+ {[%emt 0:00:13]} 49. Kd5 {[%emt 0:00:49]} Qg2+ {[%emt 0:00:10]} ({Worse is} 49... Qxc2 50. Qe8+ Bf8 51. Qf7+ Kh8 52. Qxf8#) 50. Ke6 {[%emt 0:00:26]} Qxg5 {[%emt 0:00:20]} 51. Qe8+ {[%emt 0:02:00]} Kh7 {[%emt 0:00:09]} 52. Kf7 {[%emt 0:00:52]} Qf6# {[%emt 0:00:41]} 0-1

[Event "98th Caplin Hastings Masters 2024-25"]
[Site "Hastings"]
[Date "2025.01.01"]
[Round "7.33"]
[White "Brewer, Callum D"]
[Black "Rastogi, Nayan Keats"]
[Result "1-0"]
[ECO "B50"]
[WhiteElo "2151"]
[BlackElo "1892"]
[Annotator "TA"]
[PlyCount "30"]
[EventDate "2024.12.23"]
[EventType "swiss"]
[EventCountry "ENG"]
[SourceTitle "playchess.com"]
[Source "ChessBase"]
[SourceQuality "1"]
[TimeControl "5400+30"]

{[%evp 14,30,59,54,70,62,125,118,132,122,208,206,284,277,435,256,473,474,979]} 1. e4 {[%emt 0:00:08]} c5 {[%emt 0:00:02]} 2. Nf3 {[%emt 0:00:09]} d6 {[%emt 0:00:05]} 3. c3 {[%emt 0:00:09]} Nf6 {[%emt 0:00:06]} 4. Be2 {[%emt 0:00:04]} Nc6 {[%emt 0:01:02]} 5. d4 {[%emt 0:01:19]} cxd4 {[%emt 0:00:08]} 6. cxd4 {[%emt 0:00:03]} d5 {[%emt 0:01:05]} 7. e5 {[%emt 0:01:01]} Ne4 {[%emt 0:00:14]} 8. O-O {[%emt 0:00:27]} Bg4 {[%emt 0:03:14]} 9. Be3 {[%emt 0:12:19]} Qb6 {[%emt 0:08:00]} (9... e6 $14) 10. Ne1 $16 {[%emt 0:11:19]} Bxe2 {[%emt 0:32:26]} 11. Qxe2 {[%emt 0:00:01]} a6 {[%emt 0:00:46]} (11... h6 $16 {keeps fighting.}) 12. f3 $18 {[%emt 0:07:09]} Nxd4 {[%emt 0:02:05]} 13. Qd3 {[%emt 0:01:00]} (13. fxe4 $2 {is the wrong capture.} Nxe2+ 14. Kf2 Qxb2 $19) 13... Nxf3+ {[%emt 0:01:07]} (13... e6 $142 14. Bxd4 (14. fxe4 Bc5 $18) 14... Bc5) 14. Rxf3 {[%emt 0:18:44]} ({Less strong is} 14. gxf3 Nc5 15. Qc3 (15. Qxd5 Qxb2 16. Qxc5 Qxa1 $18) 15... Qg6+ 16. Kh1 Nd7 $18) (14. Nxf3 $142 Qb4 15. Qxd5) 14... Qxb2 $2 {[%emt 0:03:34]} (14... Qc6 15. Nc3 e6) 15. Qxd5 {[%emt 0:01:30]} Rd8 {[%emt 0:01:03]} (15... Ng5 $142 16. Rf2 (16. Bxg5 e6 $18) 16... e6 (16... Qxa1 17. Bxg5 Qxb1 18. Qxf7+ Kd8 19. Rd2+ Kc7 20. Qc4+ Kb6 21. Be3+ Ka5 22. Rd5+ b5 23. Bd2+) 17. Rxb2 exd5 18. Bxg5 Bc5+ 19. Rf2 f6 20. exf6 O-O) 1-0